bitfinex-derivatives/quotes_BTCF0:USTF0_20251103
["timestamp","ask_amount","ask_price","bid_price","bid_amount"]
[1762153241154,0.35205035,107470.0,107460.0,0.05769784]
[1762153241666,0.59174445,107470.0,107460.0,0.05769784]
[1762153242262,0.35205035,107470.0,107460.0,0.05769784]
[1762153242662,0.59174445,107470.0,107460.0,0.05769784]
[1762153243657,0.35205035,107470.0,107460.0,0.05769784]
[1762153243964,0.59174445,107470.0,107460.0,0.03499784]
[1762153244366,0.59174445,107470.0,107460.0,0.05769784]
[1762153245665,0.35205035,107470.0,107460.0,0.05769784]
[1762153246254,0.02745035,107470.0,107460.0,0.05769784]
[1762153246456,0.00207668,107470.0,107460.0,0.05769784]
[1762153246757,0.34961769,107490.0,107480.0,0.05655]
[1762153246958,0.37423384,107490.0,107480.0,0.05655]
[1762153247962,0.37823384,107490.0,107480.0,0.05655]
[1762153248365,0.38023384,107490.0,107480.0,0.05655]
[1762153249366,0.61892794,107490.0,107480.0,0.05655]
[1762153249957,0.61492794,107490.0,107480.0,0.05655]
[1762153250864,0.61792794,107490.0,107480.0,0.05655]
[1762153251063,0.37923384,107490.0,107480.0,0.05655]
[1762153251363,0.35417615,107490.0,107480.0,0.05655]
[1762153251566,0.27833703,107510.0,107480.0,0.05655]
[1762153251765,0.38322195,107510.0,107500.0,0.05655]
[1762153252468,0.37404261,107510.0,107500.0,0.05655]
[1762153253870,0.61373671,107510.0,107500.0,0.05655]
[1762153254568,0.61873671,107510.0,107500.0,0.05655]
[1762153255664,0.62818055,107510.0,107490.0,0.05655]
[1762153255870,0.2396941,107500.0,107490.0,0.01319]
[1762153256072,0.26415902,107500.0,107490.0,0.01319]
[1762153256473,0.26415902,107500.0,107490.0,0.03441]
[1762153256672,0.26415902,107500.0,107490.0,0.05655]
[1762153257270,0.26415902,107500.0,107490.0,0.01319]
[1762153257465,0.26415902,107500.0,107480.0,0.03441]
[1762153257777,0.5641341,107490.0,107480.0,0.05655]
[1762153258674,0.5641341,107490.0,107480.0,0.05755]
[1762153259483,0.58791091,107490.0,107480.0,0.03541]
[1762153259673,0.58791091,107490.0,107480.0,0.01619]
[1762153259874,0.58791091,107490.0,107480.0,0.003]
[1762153260276,0.58791091,107490.0,107480.0,0.01619]
[1762153261787,0.34821681,107490.0,107480.0,0.05955]
[1762153262681,0.32444,107490.0,107480.0,0.05955]
[1762153262884,0.39861717,107500.0,107490.0,0.05655]
[1762153263088,0.34815627,107500.0,107490.0,0.05655]
[1762153263990,0.37321396,107500.0,107490.0,0.05655]
[1762153264895,0.44943331,107500.0,107490.0,0.05655]
[1762153265293,0.68912741,107500.0,107490.0,0.01319]
[1762153265800,0.44943331,107500.0,107490.0,0.05655]
[1762153266092,0.42437562,107500.0,107490.0,0.05655]
[1762153266492,0.09997562,107500.0,107490.0,0.05655]
[1762153266687,0.34815627,107500.0,107490.0,0.05655]
[1762153267194,0.3244,107500.0,107490.0,0.05655]
[1762153267688,0.3244,107510.0,107500.0,0.05655]
[1762153267899,0.34811308,107510.0,107500.0,0.05655]
[1762153268087,0.61286487,107510.0,107500.0,0.05655]
[1762153268393,0.61286487,107510.0,107490.0,0.01319]
[1762153268693,0.2396941,107500.0,107490.0,0.05655]
[1762153268888,0.02371308,107500.0,107490.0,0.05655]
[1762153269088,0.26340718,107500.0,107490.0,0.05655]
[1762153269896,0.26340718,107500.0,107490.0,0.03441]
[1762153270088,0.26340718,107500.0,107490.0,0.05655]
[1762153270692,0.02371308,107500.0,107490.0,0.05655]
[1762153270892,0.61286487,107510.0,107490.0,0.05655]
[1762153271096,0.37317077,107510.0,107490.0,0.05655]
[1762153271397,0.61286487,107510.0,107490.0,0.05655]
[1762153271891,0.2396941,107500.0,107490.0,0.01319]
[1762153272095,0.33691061,107500.0,107480.0,0.03441]
[1762153272295,0.5640541,107490.0,107480.0,0.05655]
[1762153272500,0.58776718,107490.0,107480.0,0.05655]
[1762153273694,0.58776718,107490.0,107480.0,0.05855]
[1762153274698,0.58776718,107490.0,107480.0,0.05955]
[1762153275601,0.58776718,107490.0,107480.0,0.01619]
[1762153277906,0.34807308,107490.0,107480.0,0.06121]
[1762153278200,0.32432,107490.0,107480.0,0.06121]
[1762153278802,0.39782343,107500.0,107490.0,0.05893]
[1762153279003,0.34803647,107500.0,107490.0,0.05893]
[1762153279504,0.42265598,107500.0,107490.0,0.05893]
[1762153279906,0.42265598,107500.0,107490.0,0.01391]
[1762153280213,0.44771367,107500.0,107490.0,0.01391]
[1762153282494,0.42265598,107500.0,107490.0,0.01391]
[1762153283007,0.66235008,107500.0,107490.0,0.01391]
[1762153283908,0.66235008,107500.0,107490.0,0.05893]
[1762153284110,0.42265598,107500.0,107490.0,0.05893]
[1762153285192,0.02371647,107500.0,107490.0,0.05893]
[1762153285413,0.34799647,107500.0,107490.0,0.05893]
[1762153285618,0.02371647,107500.0,107490.0,0.05893]
[1762153288403,0.32428,107510.0,107500.0,0.0454]
[1762153288606,0.34739028,107510.0,107500.0,0.0454]
[1762153289500,0.35039028,107510.0,107500.0,0.0454]
[1762153289904,0.35039028,107510.0,107500.0,0.0586]
[1762153290708,0.02811028,107510.0,107500.0,0.0586]
[1762153297808,0.005,107510.0,107500.0,0.0586]
[1762153298815,0.02789898,107510.0,107500.0,0.0586]
[1762153303521,0.17075764,107510.0,107500.0,0.0586]
[1762153305222,0.17075747,107510.0,107500.0,0.0586]
[1762153314927,0.17275747,107510.0,107500.0,0.0586]
[1762153315429,0.02989881,107510.0,107500.0,0.0586]
[1762153315831,0.17275747,107510.0,107500.0,0.0132]
[1762153316217,0.17275747,107510.0,107500.0,0.03633]
[1762153316422,0.25862315,107510.0,107500.0,0.05941]
[1762153320531,0.14426098,107510.0,107500.0,0.05941]
[1762153321031,0.25862315,107510.0,107500.0,0.0132]
[1762153321526,0.25862315,107510.0,107500.0,0.05941]
[1762153323227,1.2306325,107510.0,107490.0,0.03704]
[1762153323421,0.66708651,107500.0,107480.0,0.0594]
[1762153323621,0.34308651,107490.0,107470.0,0.0594]
[1762153323827,0.66704651,107480.0,107470.0,0.01319]
[1762153324131,0.68994532,107480.0,107470.0,0.01319]
[1762153324321,0.48989825,107480.0,107470.0,0.01319]
[1762153325226,1.49062487,107480.0,107450.0,0.01316969]
[1762153325424,1.49062487,107480.0,107450.0,6.969e-05]
[1762153325425,0.14303944,107460.0,107450.0,6.969e-05]
[1762153325733,0.51502543,107460.0,107450.0,6.969e-05]
[1762153325928,1.34766543,107460.0,107450.0,6.969e-05]
[1762153326128,1.20462599,107460.0,107450.0,6.969e-05]
[1762153326424,1.32257825,107460.0,107450.0,0.01716969]
[1762153326633,0.47651077,107460.0,107450.0,0.06337969]
[1762153326825,0.33347133,107460.0,107450.0,0.06537969]
[1762153327224,0.05984591,107500.0,107480.0,0.0131]
[1762153327225,0.06831778,107500.0,107480.0,0.0131]
[1762153327535,0.46703944,107490.0,107480.0,0.0131]
[1762153327832,0.49870341,107490.0,107480.0,0.0131]
[1762153328134,1.09870341,107490.0,107480.0,0.0131]
[1762153328733,1.09870341,107490.0,107470.0,0.03623]
[1762153328936,0.14303944,107480.0,107470.0,0.0131]
[1762153330140,0.30842126,107480.0,107460.0,0.05931]
[1762153330326,0.46703944,107470.0,107460.0,0.05931]
[1762153331129,0.324,107470.0,107460.0,0.05931]
[1762153332536,0.324,107470.0,107460.0,0.06031]
[1762153332733,0.46703944,107470.0,107460.0,0.001]
[1762153332923,0.46703944,107470.0,107460.0,0.0141]
[1762153333129,0.46703944,107470.0,107460.0,0.03723]
[1762153333328,0.46703944,107470.0,107460.0,0.06031]
[1762153334127,0.46703944,107470.0,107460.0,0.03723]
[1762153335134,0.324,107470.0,107460.0,0.06031]
[1762153336038,0.46703944,107470.0,107460.0,0.0141]
[1762153336540,0.46703944,107470.0,107460.0,0.03524]
[1762153336735,0.03440148,107490.0,107460.0,0.03524]
[1762153336736,0.03440148,107490.0,107480.0,0.03514]
[1762153337038,0.47635374,107490.0,107480.0,0.05626]
[1762153337241,0.3333143,107490.0,107480.0,0.05626]
[1762153338835,0.3393143,107490.0,107480.0,0.05626]
[1762153339241,0.3423143,107490.0,107480.0,0.05626]
[1762153339632,0.3333143,107490.0,107480.0,0.05626]
[1762153343143,0.07549714,107500.0,107490.0,0.05626]
[1762153343336,0.324,107500.0,107490.0,0.05626]
[1762153344134,0.83401944,107520.0,107510.0,0.014]
[1762153344334,1.15797944,107520.0,107510.0,0.05626]
[1762153344534,0.46699944,107520.0,107510.0,0.05626]
[1762153344737,0.32396,107520.0,107510.0,0.05626]
[1762153344937,0.39978574,107520.0,107510.0,0.05626]
[1762153345237,0.4090122,107520.0,107510.0,0.05626]
[1762153345841,0.33318646,107520.0,107510.0,0.05626]
[1762153346045,0.34118646,107520.0,107510.0,0.05626]
[1762153346241,0.34618646,107520.0,107510.0,0.05626]
[1762153348355,0.013,107520.0,107510.0,0.05626]
[1762153350946,0.02217325,107520.0,107510.0,0.05626]
[1762153351146,0.15603944,107520.0,107510.0,0.05626]
[1762153351450,0.16553592,107520.0,107510.0,0.05626]
[1762153351644,0.16553592,107520.0,107510.0,0.014]
[1762153352250,0.16553592,107520.0,107510.0,0.03687]
[1762153352450,0.16553592,107520.0,107510.0,0.05892]
[1762153352846,0.99805592,107520.0,107500.0,0.014]
[1762153353046,0.32388,107510.0,107490.0,0.014]
[1762153353247,0.39911748,107510.0,107490.0,0.05892]
[1762153354051,0.14303944,107500.0,107490.0,0.05892]
[1762153355951,0.14503944,107500.0,107480.0,0.03687]
[1762153356154,0.46691944,107490.0,107480.0,0.014]
[1762153356354,0.46691944,107490.0,107460.0,0.10824407]
[1762153356554,0.14303944,107470.0,107460.0,0.10824407]
[1762153356855,0.46691944,107470.0,107460.0,0.05826]
[1762153357652,0.46691944,107470.0,107450.0,0.05005376]
[1762153357849,0.46691944,107470.0,107450.0,6.969e-05]
[1762153357850,0.14303944,107460.0,107450.0,6.969e-05]
[1762153358355,0.14003944,107460.0,107450.0,6.969e-05]
[1762153358549,0.14003944,107460.0,107450.0,0.02293969]
[1762153358751,0.14003944,107460.0,107450.0,0.03193969]
[1762153358954,0.74003944,107460.0,107450.0,0.00906969]
[1762153359256,0.97267944,107460.0,107420.0,0.11131598]
[1762153359551,0.14303944,107440.0,107420.0,0.06133191]
[1762153359756,0.32388,107430.0,107420.0,0.06133191]
[1762153359957,0.32288,107430.0,107420.0,0.06133191]
[1762153360160,0.32296119,107430.0,107420.0,0.06133191]
[1762153361347,0.32296119,107430.0,107420.0,0.06633191]
[1762153361655,0.32296119,107430.0,107420.0,0.02141191]
[1762153361862,0.32296119,107430.0,107420.0,0.06633191]
[1762153362049,0.32596119,107430.0,107420.0,0.06733191]
[1762153362660,0.32596119,107430.0,107420.0,0.06333191]
[1762153365646,0.00308119,107430.0,107420.0,0.06333191]
[1762153368763,1.19e-06,107430.0,107420.0,0.30321026]
[1762153368965,1.19e-06,107430.0,107420.0,0.53593026]
[1762153369764,1.19e-06,107430.0,107420.0,0.29605191]
[1762153369966,1.19e-06,107430.0,107420.0,0.53593026]
[1762153370465,0.324,107460.0,107450.0,0.04467]
[1762153371161,0.68679835,107490.0,107480.0,0.01379]
[1762153371360,1.01079835,107490.0,107480.0,0.01379]
[1762153371568,1.01079835,107490.0,107460.0,0.05846]
[1762153371753,0.23987835,107480.0,107460.0,0.05846]
[1762153372155,0.23987835,107480.0,107470.0,0.04467]
[1762153372358,1.01079835,107490.0,107480.0,0.01479]
[1762153372562,1.02079835,107490.0,107480.0,0.01479]
[1762153372762,1.02987336,107490.0,107480.0,0.01479]
[1762153372968,1.1051398,107490.0,107480.0,0.01479]
[1762153373156,1.0951398,107490.0,107480.0,0.01379]
[1762153373355,1.1101398,107490.0,107480.0,0.01379]
[1762153374065,1.0951398,107490.0,107480.0,0.01379]
[1762153374260,1.1041398,107490.0,107480.0,0.01379]
[1762153374961,0.87126145,107490.0,107480.0,0.05946]
[1762153375165,0.42434145,107490.0,107480.0,0.05946]
[1762153375367,0.34907501,107490.0,107480.0,0.05946]
[1762153376368,0.016,107490.0,107480.0,0.05946]
[1762153376572,0.32396,107510.0,107500.0,0.05846]
[1762153376877,0.33318844,107510.0,107500.0,0.05846]
[1762153377074,0.32396,107510.0,107500.0,0.05846]
[1762153377668,0.33596,107510.0,107500.0,0.05846]
[1762153378466,0.34296,107510.0,107500.0,0.05946]
[1762153381572,0.34296,107510.0,107500.0,0.29202]
[1762153381774,0.019,107510.0,107500.0,0.29202]
[1762153382174,0.019,107510.0,107500.0,0.05946]
[1762153382869,0.00939185,107520.0,107510.0,0.04467]
[1762153383174,0.64028862,107530.0,107510.0,0.04467]
[1762153383570,0.23987835,107520.0,107510.0,0.04467]
[1762153384175,0.64973815,107530.0,107510.0,0.04467]
[1762153384578,0.64973815,107530.0,107500.0,0.01979]
[1762153384579,0.64973815,107530.0,107520.0,0.01379]
[1762153384965,0.64973815,107530.0,107520.0,0.03543]
[1762153385170,0.4098598,107530.0,107520.0,0.03543]
[1762153385580,0.4098598,107530.0,107520.0,0.01379]
[1762153385779,0.64973815,107530.0,107520.0,0.01379]
[1762153385978,0.65273815,107530.0,107520.0,0.01379]
[1762153386278,0.65273815,107530.0,107500.0,0.05846]
[1762153386478,0.65473815,107530.0,107520.0,0.01379]
[1762153387170,0.65273815,107530.0,107520.0,0.01379]
[1762153387367,0.65473815,107530.0,107520.0,0.01379]
[1762153388978,0.65473815,107530.0,107520.0,0.05846]
[1762153389875,0.4148598,107530.0,107520.0,0.05846]
[1762153392475,0.65473815,107530.0,107500.0,0.01379]
[1762153392779,0.58124788,107530.0,107520.0,0.01379]
[1762153392977,0.34136953,107530.0,107520.0,0.05846]
[1762153393582,0.33936953,107530.0,107520.0,0.05846]
[1762153394282,0.33636953,107530.0,107520.0,0.05846]
[1762153394983,0.33936953,107530.0,107520.0,0.05846]
[1762153395482,0.34136953,107530.0,107520.0,0.05846]
[1762153395880,1.18124788,107530.0,107500.0,0.05707]
[1762153396084,0.23987835,107520.0,107500.0,0.05707]
[1762153396485,0.3238,107510.0,107500.0,0.05707]
[1762153396981,0.56367835,107510.0,107500.0,0.01379]
[1762153397183,0.56367835,107510.0,107500.0,0.01779]
[1762153397381,0.56367835,107510.0,107500.0,0.004]
[1762153397690,1.16367835,107510.0,107500.0,0.003]
[1762153397879,1.16367835,107510.0,107500.0,0.004]
[1762153398279,1.18622213,107510.0,107500.0,0.004]
[1762153398584,1.19022213,107510.0,107500.0,0.003]
[1762153398786,1.19022213,107510.0,107480.0,0.01379]
[1762153398787,1.19022213,107510.0,107480.0,0.05707]
[1762153398986,0.35034378,107510.0,107500.0,0.003]
[1762153399587,0.35034378,107510.0,107480.0,0.01379]
[1762153399588,1.20799096,107510.0,107480.0,0.01379]
[1762153399791,0.38343096,107510.0,107480.0,0.01379]
[1762153400090,0.23987835,107490.0,107480.0,0.01379]
[1762153400285,0.56367835,107490.0,107460.0,0.05707]
[1762153400486,0.23987835,107480.0,107460.0,0.05707]
[1762153400786,0.3238,107470.0,107460.0,0.05707]
[1762153401589,0.3238,107470.0,107460.0,0.05807]
[1762153402687,0.3248,107470.0,107460.0,0.05807]
[1762153403681,0.3258,107470.0,107460.0,0.05707]
[1762153404589,0.3248,107470.0,107460.0,0.05707]
[1762153404784,0.3248,107470.0,107460.0,0.05807]
[1762153404986,0.3238,107470.0,107460.0,0.06007]
[1762153410395,0.3238,107470.0,107460.0,0.06007]
[1762153416699,0.39737259,107490.0,107480.0,0.05762]
[1762153416891,0.32384,107490.0,107480.0,0.05762]
[1762153418000,0.40340506,107490.0,107480.0,0.05762]
[1762153418207,0.64328341,107490.0,107470.0,0.01351]
[1762153419807,0.64128341,107490.0,107470.0,0.01351]
[1762153420096,0.63828341,107490.0,107470.0,0.03615]
[1762153420291,0.54136922,107490.0,107480.0,0.01351]
[1762153420800,0.39640506,107490.0,107480.0,0.05762]
[1762153421000,0.40340506,107490.0,107480.0,0.05762]
[1762153422398,0.40040506,107490.0,107480.0,0.05762]
[1762153422601,0.40340506,107490.0,107480.0,0.05762]
[1762153425001,0.33084,107490.0,107480.0,0.05762]
[1762153425200,0.3308,107490.0,107480.0,0.05762]
[1762153427193,0.3308,107490.0,107480.0,0.29022]
[1762153427394,0.3308,107490.0,107480.0,0.12418964]
[1762153428007,0.3308,107490.0,107480.0,0.05762]
[1762153428395,0.007,107490.0,107480.0,0.29022]
[1762153428705,0.007,107490.0,107480.0,0.05762]
[1762153433004,0.1727988,107490.0,107470.0,0.01351]
[1762153433197,0.14296416,107480.0,107460.0,0.10155964]
[1762153433395,0.14296416,107470.0,107460.0,0.05603]
[1762153433599,0.46672416,107470.0,107460.0,0.12259964]
[1762153434002,0.32376,107470.0,107460.0,0.12259964]
[1762153434906,0.32376,107470.0,107460.0,0.05803]
[1762153435903,0.32376,107470.0,107460.0,0.05903]
[1762153436108,0.07461156,107490.0,107480.0,0.05511]
[1762153436418,0.3470091,107490.0,107480.0,0.05511]
[1762153436709,0.48997326,107490.0,107480.0,0.05511]
[1762153437108,0.56389273,107490.0,107480.0,0.05511]
[1762153437509,0.56789273,107490.0,107480.0,0.05511]
[1762153437808,0.42792857,107490.0,107480.0,0.05511]
[1762153438611,0.40467947,107490.0,107480.0,0.05511]
[1762153439603,0.54764363,107490.0,107480.0,0.01287]
[1762153440004,1.17089463,107490.0,107470.0,0.03407]
[1762153440204,0.14296416,107480.0,107470.0,0.03407]
[1762153440405,0.40467947,107490.0,107470.0,0.05511]
[1762153440609,0.42793002,107490.0,107480.0,0.05511]
[1762153441107,0.42493002,107490.0,107480.0,0.05511]
[1762153441504,0.35101055,107490.0,107480.0,0.05511]
[1762153441915,0.32776,107490.0,107480.0,0.05511]
[1762153443417,0.33076,107490.0,107480.0,0.05511]
[1762153444613,0.33076,107490.0,107470.0,0.07943964]
[1762153444614,0.47372416,107490.0,107470.0,0.07943964]
[1762153444814,0.14296416,107480.0,107470.0,0.07943964]
[1762153445012,0.14296416,107480.0,107470.0,0.01287]
[1762153445413,0.14296416,107480.0,107470.0,0.05511]
[1762153445912,0.001,107480.0,107470.0,0.05511]
[1762153446108,0.002,107480.0,107470.0,0.05511]
[1762153447511,0.32572,107480.0,107470.0,0.05511]
[1762153447712,0.32572,107480.0,107470.0,0.12167964]
[1762153447924,0.32572,107480.0,107470.0,0.35427964]
[1762153448217,0.32572,107480.0,107470.0,0.12167964]
[1762153449119,0.32372,107480.0,107470.0,0.12167964]
[1762153449310,0.32372,107480.0,107470.0,0.12467964]
[1762153449515,0.46668416,107480.0,107470.0,0.08243964]
[1762153449817,0.46668416,107480.0,107470.0,0.12467964]
[1762153450318,0.46668416,107480.0,107470.0,0.12367964]
[1762153450518,0.46768416,107480.0,107470.0,0.12367964]
[1762153450709,0.46768416,107480.0,107470.0,0.01487]
[1762153451514,0.46768416,107480.0,107470.0,0.03607]
[1762153451719,0.46768416,107480.0,107470.0,0.01487]
[1762153452316,0.4909457,107480.0,107460.0,0.03499]
[1762153452508,0.14296416,107470.0,107460.0,0.03499]
[1762153453221,0.14296416,107470.0,107460.0,0.05603]
[1762153453416,0.14296416,107470.0,107460.0,0.05803]
[1762153453617,0.15220528,107470.0,107460.0,0.12559964]
[1762153454018,0.15220528,107470.0,107460.0,0.06956964]
[1762153454319,0.98484528,107470.0,107450.0,0.06664815]
[1762153454517,0.46668416,107460.0,107450.0,0.06664815]
[1762153454717,0.46676267,107460.0,107440.0,0.01287]
[1762153454918,0.14296416,107450.0,107440.0,0.01287]
[1762153455221,0.14096416,107450.0,107440.0,0.01287]
[1762153455923,0.13896416,107450.0,107440.0,0.01287]
[1762153456120,0.13896416,107450.0,107440.0,0.01987]
[1762153456523,0.73896416,107450.0,107440.0,0.02387]
[1762153457519,0.21352904,107450.0,107440.0,0.06637]
[1762153457714,0.07456488,107450.0,107440.0,0.06637]
[1762153457916,0.32376,107450.0,107440.0,0.06637]
[1762153458122,0.14304267,107460.0,107440.0,0.06637]
[1762153458426,0.14304267,107460.0,107440.0,0.06429]
[1762153458625,0.32376,107450.0,107440.0,0.06329]
[1762153459117,0.32376,107450.0,107440.0,0.05529]
[1762153459926,0.32576,107450.0,107440.0,0.05529]
[1762153460224,0.32976,107450.0,107440.0,0.05529]
[1762153460918,0.47272416,107450.0,107440.0,0.05529]
[1762153464829,0.5456514,107450.0,107440.0,0.05529]
[1762153467132,1.1456514,107450.0,107440.0,0.01287]
[1762153469134,1.14572991,107450.0,107440.0,0.01287]
[1762153471130,1.14572991,107450.0,107440.0,0.03462]
[1762153471734,0.82196991,107450.0,107440.0,0.05793]
[1762153471929,1.14576991,107450.0,107440.0,0.05793]
[1762153472632,1.14576991,107450.0,107440.0,0.01287]
[1762153472833,1.16960452,107450.0,107440.0,0.01287]
[1762153473235,1.14576991,107450.0,107440.0,0.01287]
[1762153473435,1.14576991,107450.0,107440.0,0.05793]
[1762153476336,0.40280575,107450.0,107440.0,0.05793]
[1762153477443,0.54576991,107450.0,107440.0,0.05793]
[1762153477636,0.22196991,107450.0,107440.0,0.05793]
[1762153477838,0.54576991,107450.0,107440.0,0.05793]
[1762153480638,0.56960443,107450.0,107440.0,0.01287]
[1762153482345,0.66652827,107450.0,107440.0,0.01287]
[1762153484936,1.26652827,107450.0,107430.0,0.01287]
[1762153485141,0.239888,107440.0,107430.0,0.01287]
[1762153485341,0.26380093,107440.0,107430.0,0.01287]
[1762153487040,0.26480093,107440.0,107430.0,0.01287]
[1762153487638,0.86480093,107440.0,107420.0,0.01594191]
[1762153487836,0.563688,107430.0,107410.0,0.01287]
[1762153488041,0.23996651,107420.0,107410.0,0.01287]
[1762153488240,1.73996651,107420.0,107410.0,0.05625]
[1762153489948,1.73996651,107420.0,107410.0,0.01287]
[1762153490444,1.73996651,107420.0,107410.0,0.01587]
[1762153490842,1.73996651,107420.0,107410.0,0.003]
[1762153491042,1.73996651,107420.0,107410.0,0.004]
[1762153491245,1.73996651,107420.0,107410.0,0.01795]
[1762153494954,1.97272651,107420.0,107410.0,0.01795]
[1762153495649,1.73996651,107420.0,107410.0,0.01795]
[1762153495848,1.97272651,107420.0,107410.0,0.01795]
[1762153496653,1.73996651,107420.0,107410.0,0.01795]
[1762153497851,2.06380651,107420.0,107410.0,0.01795]
[1762153498052,2.29656651,107420.0,107410.0,0.01795]
[1762153498250,1.97272651,107420.0,107410.0,0.01795]
[1762153498551,2.29656651,107420.0,107410.0,0.01795]
[1762153498756,2.29656651,107420.0,107410.0,0.004]
[1762153498958,2.29656651,107420.0,107400.0,0.01395]
[1762153499158,0.239888,107410.0,107400.0,0.01395]
[1762153499858,0.239888,107410.0,107400.0,0.0351]
[1762153500053,0.239888,107410.0,107400.0,0.06633]
[1762153501261,0.00107851,107420.0,107410.0,0.05733]
[1762153501459,0.32491851,107420.0,107410.0,0.05733]
[1762153501953,7.851e-05,107420.0,107410.0,0.05733]
[1762153502653,7.851e-05,107420.0,107410.0,0.05833]
[1762153503264,0.23996651,107420.0,107410.0,0.05833]
[1762153503758,7.851e-05,107420.0,107410.0,0.05833]
[1762153503957,0.23996651,107420.0,107410.0,0.05833]
[1762153504474,7.851e-05,107420.0,107410.0,0.05833]
[1762153506856,1.77888,107440.0,107430.0,0.05733]
[1762153507055,0.30307128,107440.0,107430.0,0.05733]
[1762153507263,0.27888,107440.0,107430.0,0.05733]
[1762153507763,0.30307383,107440.0,107430.0,0.05733]
[1762153508956,0.30607383,107440.0,107430.0,0.05833]
[1762153509165,0.31007383,107440.0,107430.0,0.05833]
[1762153511165,0.28588,107440.0,107430.0,0.05833]
[1762153513467,0.007,107440.0,107430.0,0.05833]
[1762153514468,0.007,107440.0,107420.0,0.01395]
[1762153514665,0.246888,107440.0,107430.0,0.05733]
[1762153514867,0.27102451,107440.0,107420.0,0.05733]
[1762153515066,0.239888,107430.0,107420.0,0.05733]
[1762153515258,0.03113651,107440.0,107430.0,0.03525]
[1762153515259,0.246888,107440.0,107430.0,0.03525]
[1762153515463,0.27102469,107440.0,107430.0,0.05841]
[1762153515668,0.26702469,107440.0,107430.0,0.05841]
[1762153515968,0.26602469,107440.0,107430.0,0.05841]
[1762153516465,0.26502469,107440.0,107430.0,0.05841]
[1762153516773,0.27102469,107440.0,107430.0,0.05941]
[1762153517564,0.27102469,107440.0,107430.0,0.01366]
[1762153517764,0.246888,107440.0,107430.0,0.01366]
[1762153517965,0.246888,107440.0,107430.0,0.05941]
[1762153519879,0.246888,107440.0,107430.0,0.001]
[1762153520174,0.246888,107440.0,107430.0,0.05941]
[1762153520574,0.007,107440.0,107430.0,0.05941]
[1762153522866,0.03113721,107440.0,107430.0,0.05941]
[1762153524272,0.007,107440.0,107430.0,0.05941]
[1762153524868,0.14923724,107450.0,107440.0,0.05841]
[1762153525068,0.14923724,107450.0,107440.0,0.38213]
[1762153525776,0.07631,107450.0,107440.0,0.38213]
[1762153526374,0.07631,107450.0,107440.0,0.38313]
[1762153526375,0.08131,107450.0,107440.0,0.38313]
[1762153526678,0.08831,107450.0,107440.0,0.38313]
[1762153527966,0.04833546,107450.0,107440.0,0.38313]
[1762153528278,0.00633546,107450.0,107440.0,0.61781]
[1762153528478,0.00133546,107450.0,107440.0,0.61681]
[1762153528784,0.04581,107470.0,107460.0,0.00755]
[1762153528973,0.04713906,107470.0,107460.0,0.37643]
[1762153529172,0.02387906,107470.0,107460.0,0.37643]
[1762153529372,0.04713906,107470.0,107460.0,0.37643]
[1762153530179,0.04713906,107470.0,107460.0,0.05371]
[1762153530180,0.08175469,107470.0,107460.0,0.05371]
[1762153530378,0.33424269,107470.0,107460.0,0.04616]
[1762153530578,0.33424269,107470.0,107460.0,0.23384]
[1762153530882,0.33017706,107470.0,107460.0,0.23384]
[1762153531079,0.07768906,107470.0,107460.0,0.24734]
[1762153531273,0.03187906,107470.0,107460.0,0.24734]
[1762153531781,0.07768906,107470.0,107460.0,0.24734]
[1762153533273,0.03187906,107470.0,107460.0,0.24734]
[1762153533581,0.09028906,107470.0,107460.0,0.04616]
[1762153533781,0.33017706,107470.0,107460.0,0.3698]
[1762153534169,0.09028906,107470.0,107460.0,0.3698]
[1762153534568,0.06641,107470.0,107460.0,0.3698]
[1762153534778,0.306298,107470.0,107460.0,0.3698]
[1762153535276,0.06641,107470.0,107460.0,0.3833]
[1762153536582,0.008,107470.0,107460.0,0.3833]
[1762153537078,0.05381,107470.0,107460.0,0.3833]
[1762153537284,0.06641,107470.0,107460.0,0.3833]
[1762153537485,0.06641,107470.0,107460.0,0.3698]
[1762153537984,0.06641,107470.0,107460.0,0.001]
[1762153538173,0.306298,107470.0,107460.0,0.001]
[1762153538489,0.33015602,107470.0,107460.0,0.001]
[1762153539177,0.04581,107440.0,107430.0,0.1493]
[1762153539582,0.02326,107440.0,107430.0,0.1493]
[1762153540082,0.04581,107440.0,107430.0,0.38142]
[1762153540279,0.05423,107450.0,107440.0,0.04516]
[1762153542182,0.05423,107450.0,107440.0,0.02237]
[1762153542381,0.19730788,107450.0,107440.0,0.02237]
[1762153542580,0.04581,107440.0,107430.0,0.38142]
[1762153542987,0.15249788,107450.0,107440.0,0.05866]
[1762153542988,0.05523,107450.0,107440.0,0.05866]
[1762153543189,0.04681,107450.0,107440.0,0.05866]
[1762153543487,0.03226,107450.0,107440.0,0.05966]
[1762153543687,0.05481,107450.0,107440.0,0.05966]
[1762153543980,0.06741,107450.0,107440.0,0.05966]
[1762153544186,0.06241,107450.0,107440.0,0.38326]
[1762153544375,0.06441,107450.0,107440.0,0.38326]
[1762153544989,0.05841,107450.0,107440.0,0.38226]
[1762153545191,0.06141,107450.0,107440.0,0.38226]
[1762153545391,0.06141,107450.0,107440.0,0.04516]
[1762153545693,0.06041,107450.0,107440.0,0.04516]
[1762153545889,0.06241,107450.0,107440.0,0.04516]
[1762153546192,0.13501696,107450.0,107440.0,0.04516]
[1762153546490,0.27809484,107450.0,107440.0,0.04516]
[1762153546689,0.13501696,107450.0,107440.0,0.04516]
[1762153546991,0.12241696,107450.0,107440.0,0.05797]
[1762153547790,0.12041696,107450.0,107440.0,0.05797]
[1762153548282,0.11841696,107450.0,107440.0,0.05797]
[1762153548483,0.11941696,107450.0,107440.0,0.05797]
[1762153549191,0.12041696,107450.0,107440.0,0.05797]
[1762153549785,0.12141696,107450.0,107440.0,0.05797]
[1762153550485,0.11941696,107450.0,107440.0,0.05797]
[1762153551590,0.07360696,107450.0,107440.0,0.05797]
[1762153551789,0.11752696,107450.0,107440.0,0.05797]
[1762153552594,0.13102696,107450.0,107440.0,0.36876]
[1762153552788,0.27410484,107450.0,107440.0,0.02237]
[1762153553294,0.27410484,107450.0,107440.0,0.04476]
[1762153553594,0.13102696,107450.0,107440.0,0.04476]